bitfinex-derivatives/quotes_BTCF0:USTF0_20241110
["timestamp","ask_amount","ask_price","bid_price","bid_amount"]
[1731205581116,0.21850941,77331.0,77330.0,0.06471]
[1731205581319,0.16093133,77331.0,77330.0,0.06471]
[1731205583326,0.12125053,77331.0,77330.0,0.06471]
[1731205584222,0.50921053,77331.0,77330.0,0.06471]
[1731205585028,0.22522623,77331.0,77330.0,0.06471]
[1731205585220,0.09630963,77331.0,77330.0,0.129332]
[1731205585428,0.05662953,77331.0,77330.0,0.251832]
[1731205586528,0.0396756,77331.0,77330.0,0.251832]
[1731205587037,0.11484,77338.0,77337.0,0.06471]
[1731205587329,0.03967504,77338.0,77337.0,0.42551]
[1731205587531,0.0593,77351.0,77337.0,0.42551]
[1731205587532,0.1289166,77340.0,77337.0,0.42551]
[1731205587725,0.11484,77346.0,77337.0,0.490126]
[1731205588229,0.11484,77346.0,77339.0,0.03883]
[1731205588538,0.064609,77346.0,77339.0,0.129324]
[1731205588728,0.06461,77344.0,77339.0,0.06471]
[1731205589329,0.06461,77344.0,77337.0,0.3608]
[1731205589330,0.06461,77344.0,77340.0,0.06471]
[1731205589530,0.1368696,77349.0,77340.0,0.06471]
[1731205589531,0.02587142,77349.0,77340.0,0.06471]
[1731205589831,0.02587142,77349.0,77340.0,0.129323]
[1731205590033,0.179445,77350.0,77340.0,0.06471]
[1731205590034,0.11484,77350.0,77340.0,0.06471]
[1731205590228,0.179445,77350.0,77346.0,0.06471]
[1731205591238,0.11484,77350.0,77346.0,0.06471]
[1731205592236,0.064606,77349.0,77346.0,0.06471]
[1731205592930,0.11099818,77354.0,77346.0,0.06471]
[1731205593232,0.1148,77353.0,77348.0,0.06471]
[1731205593439,0.1148,77357.0,77350.0,0.06471]
[1731205593736,0.1148,77357.0,77350.0,0.04071]
[1731205594124,0.1148,77357.0,77354.0,0.3608]
[1731205594629,0.064601,77356.0,77354.0,0.3608]
[1731205594826,0.1148,77357.0,77354.0,0.3608]
[1731205595335,0.0192825,77356.0,77354.0,0.3608]
[1731205595523,0.0192825,77355.0,77354.0,0.3608]
[1731205596956,0.3013564,77372.0,77354.0,0.38289011]
[1731205597143,0.3013564,77372.0,77364.0,0.3608]
[1731205597442,0.3013564,77372.0,77365.0,0.0586]
[1731205597443,0.12910137,77371.0,77365.0,0.0586]
[1731205597740,0.064589,77370.0,77365.0,0.0586]
[1731205597940,0.3013564,77372.0,77366.0,0.0582]
[1731205598135,0.3013564,77372.0,77365.0,0.04406459]
[1731205598741,0.064579,77382.0,77371.0,0.3608]
[1731205598942,0.1148,77385.0,77371.0,0.3608]
[1731205598943,0.11099818,77375.0,77371.0,0.3608]
[1731205599243,0.19284215,77381.0,77374.0,0.11099818]
[1731205599442,0.19284215,77381.0,77371.0,0.3608]
[1731205599744,0.11099818,77387.0,77371.0,0.3608]
[1731205600045,0.064579,77382.0,77371.0,0.3608]
[1731205600231,0.1167395,77388.0,77371.0,0.3608]
[1731205600437,0.0019395,77388.0,77381.0,0.3608]
[1731205600633,0.0019395,77388.0,77386.0,0.11099818]
[1731205600936,0.01091234,77397.0,77382.0,0.0615]
[1731205601138,0.3608,77399.0,77393.0,0.3608]
[1731205601446,0.1,77400.0,77393.0,0.3608]
[1731205601937,0.16766479,77404.0,77398.0,0.11099818]
[1731205602137,0.2923,77525.0,77393.0,0.63492]
[1731205602138,0.23653835,77443.0,77422.0,0.6545]
[1731205602443,0.23653835,77443.0,77404.0,0.06471]
[1731205602444,0.064494,77484.0,77452.0,0.6545]
[1731205602634,0.3608,77491.0,77475.0,0.11099818]
[1731205602835,0.3608,77491.0,77476.0,0.12164]
[1731205603030,0.3608,77504.0,77487.0,0.06471]
[1731205603031,0.11133983,77500.0,77487.0,0.06471]
[1731205603231,0.3608,77497.0,77487.0,0.3]
[1731205603443,0.3608,77512.0,77496.0,0.11099818]
[1731205603746,0.3608,77512.0,77510.0,0.08511818]
[1731205604052,0.67211929,77511.0,77497.0,0.06471]
[1731205604243,0.67211929,77511.0,77478.0,0.3608]
[1731205604244,0.27060201,77497.0,77488.0,0.06471]
[1731205604435,0.16929294,77498.0,77490.0,0.06471]
[1731205604748,0.23378094,77491.0,77490.0,0.06471]
[1731205605137,0.25055343,77491.0,77490.0,0.06471]
[1731205605334,0.81746744,77491.0,77479.0,0.06471]
[1731205605538,0.44206949,77480.0,77479.0,0.06471]
[1731205605740,1.00352444,77480.0,77479.0,0.06471]
[1731205605937,1.00352444,77480.0,77415.0,0.06455]
[1731205605938,0.09489383,77463.0,77451.0,0.11099818]
[1731205606146,0.01677249,77452.0,77451.0,0.11099818]
[1731205606449,0.64175926,77452.0,77439.0,0.47179818]
[1731205606639,0.64175926,77452.0,77425.0,0.0018]
[1731205606640,0.01677249,77440.0,77432.0,0.11099818]
[1731205606943,0.16929294,77433.0,77432.0,0.11099818]
[1731205607153,0.18606543,77433.0,77432.0,0.11099818]
[1731205607349,0.28095926,77433.0,77428.0,0.16755734]
[1731205607544,0.28095926,77433.0,77420.0,0.52835734]
[1731205607545,0.09489383,77428.0,77420.0,0.52835734]
[1731205607845,0.3608,77437.0,77420.0,0.3608]
[1731205607846,0.18606543,77421.0,77420.0,0.3608]
[1731205608049,0.20696912,77421.0,77420.0,0.3608]
[1731205608244,0.18606543,77421.0,77420.0,0.74828]
[1731205608445,0.18606543,77421.0,77420.0,0.3608]
[1731205608748,0.3608,77445.0,77420.0,0.3608]
[1731205608749,0.3608,77461.0,77420.0,1.17684]
[1731205608938,0.064511,77463.0,77439.0,0.3608]
[1731205608939,0.3608,77463.0,77439.0,0.3608]
[1731205609144,0.064523,77449.0,77446.0,0.3608]
[1731205609541,0.02139423,77448.0,77446.0,0.3608]
[1731205609749,0.18996,77462.0,77439.0,0.34841955]
[1731205609750,0.02139443,77447.0,77439.0,0.34841955]
[1731205609951,0.064529,77441.0,77439.0,0.34841955]
[1731205610158,0.02139673,77440.0,77439.0,0.34841955]
[1731205610454,0.3608,77456.0,77439.0,0.34841955]
[1731205610642,0.064527,77444.0,77439.0,0.34841955]
[1731205612255,0.06452,77452.0,77439.0,0.64841955]
[1731205612557,0.064518,77455.0,77440.0,0.06471]
[1731205612742,0.064523,77450.0,77440.0,0.06471]
[1731205612960,0.064523,77450.0,77449.0,0.42551]
[1731205613745,0.064523,77450.0,77449.0,0.06471]
[1731205613746,0.30152424,77450.0,77449.0,0.06471]
[1731205613946,0.064524,77447.0,77446.0,0.06471]
[1731205614145,0.08516598,77447.0,77446.0,0.06471]
[1731205614341,0.30152524,77447.0,77446.0,0.06471]
[1731205615045,0.3608,77455.0,77444.0,0.06471]
[1731205615257,0.02091947,77454.0,77451.0,0.06471]
[1731205615653,0.0614,77462.0,77451.0,0.06471]
[1731205615654,0.02091947,77453.0,77451.0,0.06471]
[1731205615850,0.02091947,77452.0,77451.0,0.06471]
[1731205616053,0.23727873,77452.0,77451.0,0.06471]
[1731205616852,0.21635926,77452.0,77451.0,0.06471]
[1731205617062,0.17750926,77452.0,77450.0,0.3608]
[1731205617248,0.12892,77452.0,77451.0,0.06471]
[1731205617449,0.3608,77478.0,77451.0,0.45207]
[1731205617655,0.3608,77478.0,77461.0,0.35586139]
[1731205617860,0.3608,77478.0,77470.0,0.3608]
[1731205617861,0.23800926,77477.0,77470.0,0.3608]
[1731205618061,0.20338926,77462.0,77461.0,0.32199]
[1731205618255,0.20338926,77462.0,77461.0,0.36082]
[1731205618460,0.20338926,77462.0,77461.0,0.33494]
[1731205618660,0.16755734,77476.0,77461.0,0.30906]
[1731205618957,0.20338926,77468.0,77461.0,0.2573]
[1731205619354,0.3608,77471.0,77461.0,0.2573]
[1731205619355,0.20338926,77464.0,77461.0,0.20554]
[1731205619569,0.20338926,77464.0,77455.0,0.06471]
[1731205619766,0.3608,77471.0,77455.0,0.06471]
[1731205620066,0.20338926,77468.0,77455.0,0.06471]
[1731205620773,0.20338926,77463.0,77455.0,0.06471]
[1731205620971,0.20338926,77457.0,77455.0,0.06471]
[1731205621569,0.0651,77456.0,77455.0,0.06471]
[1731205621970,0.0651,77456.0,77432.0,0.06471]
[1731205621971,0.39490626,77456.0,77432.0,0.06471]
[1731205622175,0.20338926,77449.0,77432.0,0.06471]
[1731205622675,0.20338926,77449.0,77431.0,0.3608]
[1731205622676,0.20338926,77448.0,77443.0,0.06471]
[1731205622982,0.064525,77446.0,77443.0,0.06471]
[1731205623274,0.20338926,77446.0,77443.0,0.06471]
[1731205623479,0.20338926,77446.0,77431.0,0.3608]
[1731205623480,0.20338926,77444.0,77425.0,0.06471]
[1731205623668,0.20338926,77436.0,77425.0,0.06471]
[1731205623979,0.20338926,77434.0,77425.0,0.06471]
[1731205624167,0.3608,77439.0,77426.0,0.06471]
[1731205624375,0.3608,77427.0,77426.0,0.06471]
[1731205624673,0.064544,77423.0,77415.0,0.06471]
[1731205624873,0.3608,77427.0,77420.0,0.06471]
[1731205625181,0.3608,77429.0,77420.0,0.06471]
[1731205625372,0.20338926,77422.0,77420.0,0.06471]
[1731205625573,0.3608,77429.0,77420.0,0.06471]
[1731205625774,0.20338926,77421.0,77420.0,0.06471]
[1731205625970,0.20338926,77421.0,77415.0,0.06471]
[1731205626276,0.20338926,77417.0,77415.0,0.06471]
[1731205627075,0.20338926,77416.0,77410.0,0.00012263]
[1731205627276,0.20338926,77411.0,77410.0,0.00012263]
[1731205627474,0.22253837,77411.0,77410.0,0.00012263]
[1731205628178,0.22253837,77411.0,77408.0,0.00068428]
[1731205628374,0.26794526,77409.0,77408.0,0.00068428]
[1731205628577,0.064562,77402.0,77401.0,0.06471]
[1731205628780,0.28710037,77402.0,77401.0,0.06471]
[1731205629081,0.28710037,77402.0,77382.0,0.3626]
[1731205629082,0.064571,77391.0,77382.0,0.3626]
[1731205629379,0.143,77408.0,77382.0,0.3608]
[1731205629380,0.20338926,77385.0,77382.0,0.3608]
[1731205629579,0.3608,77393.0,77382.0,0.3608]
[1731205629580,0.01914911,77384.0,77382.0,0.3608]
[1731205629778,0.3608,77393.0,77382.0,0.3608]
[1731205629779,0.3608,77413.0,77383.0,0.55523734]
[1731205629974,0.3608,77413.0,77412.0,0.16755734]
[1731205629975,0.56418926,77413.0,77412.0,0.16755734]
[1731205630479,0.3608,77432.0,77412.0,1.0216]
[1731205630779,4.732e-05,77445.0,77431.0,0.52835734]
[1731205630780,0.20338926,77436.0,77431.0,0.52835734]
[1731205631276,0.20338926,77435.0,77431.0,0.16755734]
[1731205631475,4.732e-05,77445.0,77431.0,0.16755734]
[1731205631476,0.20338926,77440.0,77431.0,0.16655734]
[1731205631779,4.732e-05,77445.0,77439.0,0.16755734]
[1731205632273,4.732e-05,77445.0,77439.0,0.16655734]
[1731205632478,0.20343658,77445.0,77437.0,0.3608]
[1731205632773,0.20343658,77445.0,77444.0,0.16755734]
[1731205633174,0.20443658,77445.0,77444.0,0.16755734]
[1731205633870,0.20393658,77445.0,77437.0,0.3608]
[1731205634078,0.20293658,77438.0,77437.0,0.3608]
[1731205634890,0.20293658,77438.0,77428.0,0.19340933]
[1731205635071,0.001,77445.0,77436.0,0.16755734]
[1731205635275,0.001,77445.0,77438.0,0.16755734]
[1731205635886,0.20293658,77443.0,77438.0,0.16755734]
[1731205636074,0.3608,77451.0,77429.0,0.3608]
[1731205636075,0.20293658,77439.0,77429.0,0.3608]
[1731205636273,0.20293658,77438.0,77436.0,0.3608]
[1731205636475,0.3608,77451.0,77436.0,0.3608]
[1731205636675,0.20293658,77437.0,77436.0,0.3608]
[1731205637784,0.20293658,77437.0,77429.0,0.3608]
[1731205637975,0.3608,77443.0,77436.0,0.16755734]
[1731205638175,0.20293658,77437.0,77436.0,0.52835734]
[1731205638582,0.001,77437.0,77436.0,0.52835734]
[1731205639182,0.3608,77458.0,77436.0,0.99591468]
[1731205639385,0.3608,77458.0,77455.0,0.16755734]
[1731205639589,0.3608,77458.0,77446.0,0.16755734]
[1731205639590,0.20293658,77451.0,77446.0,0.16755734]
[1731205639786,0.01877855,77450.0,77446.0,0.094899]
[1731205639976,0.01877855,77449.0,77446.0,0.00609436]
[1731205640173,0.01877855,77448.0,77446.0,0.00609436]
[1731205640381,0.01877855,77447.0,77446.0,0.00609436]
[1731205640681,0.22171513,77447.0,77438.0,0.16755734]
[1731205640891,0.20293658,77444.0,77438.0,0.16755734]
[1731205641088,0.01877855,77443.0,77438.0,0.16755734]
[1731205641385,0.20293658,77439.0,77436.0,0.3608]
[1731205641597,0.20293658,77437.0,77436.0,0.3608]
[1731205641788,0.22171513,77437.0,77436.0,0.3608]
[1731205642175,0.22171513,77437.0,77436.0,0.39963]
[1731205642377,0.01877855,77437.0,77436.0,0.39963]
[1731205642687,0.20293658,77437.0,77436.0,0.39963]
[1731205643992,0.20393658,77437.0,77436.0,0.39963]
[1731205647191,0.20393658,77437.0,77431.0,0.06471]
[1731205647400,0.3608,77432.0,77431.0,0.06471]
[1731205647587,0.3608,77432.0,77417.0,0.3608]
[1731205647588,0.56373658,77432.0,77418.0,0.06471]
[1731205647893,0.001,77437.0,77417.0,0.3608]
[1731205647894,0.20293658,77425.0,77424.0,0.06471]
[1731205648084,0.20293658,77425.0,77424.0,0.42551]
[1731205648594,0.001,77437.0,77424.0,0.42551]
[1731205648794,0.20293658,77431.0,77429.0,0.06471]
[1731205649787,0.001,77437.0,77429.0,0.06471]
[1731205649987,0.1302,77461.0,77440.0,0.06453]
[1731205650192,0.20293658,77447.0,77446.0,0.09489378]
[1731205650384,0.20293658,77447.0,77446.0,0.03913115]
[1731205650589,0.1302,77461.0,77446.0,0.03913115]
[1731205650792,0.20293658,77452.0,77446.0,0.03913115]
[1731205650986,0.0642,77474.0,77451.0,0.3608]
[1731205651187,0.3608,77479.0,77467.0,0.3608]
[1731205651188,0.06477,77477.0,77467.0,0.3608]
[1731205652095,0.00047,77477.0,77467.0,0.3608]
[1731205652490,0.01972438,77468.0,77467.0,0.3608]
[1731205652694,0.01972438,77468.0,77467.0,0.4243]
[1731205652991,0.00047,77477.0,77476.0,0.0645]
[1731205653212,0.129477,77504.0,77485.0,0.064492]
[1731205653386,0.065,77504.0,77493.0,0.16755734]
[1731205653590,0.20293658,77499.0,77497.0,0.3608]
[1731205653787,0.3608,77505.0,77497.0,0.3608]
[1731205654202,0.3608,77515.0,77498.0,0.15048]
[1731205654496,0.3608,77529.0,77513.0,0.11579734]
[1731205654796,0.16408658,77515.0,77505.0,0.3608]
[1731205655000,0.16408658,77506.0,77505.0,0.39963]
[1731205655199,0.16408658,77506.0,77505.0,0.03883]
[1731205655405,0.02638251,77506.0,77505.0,0.03883]
[1731205655698,0.3608,77512.0,77506.0,0.03883]
[1731205655902,0.0265337,77511.0,77506.0,0.03883]
[1731205656091,0.16408658,77508.0,77498.0,0.19331208]
[1731205656291,0.16408658,77505.0,77495.0,0.15048]
[1731205656602,0.16408658,77505.0,77489.0,0.3608]
[1731205656603,0.16408658,77511.0,77498.0,0.16755734]
[1731205656790,0.0264661,77510.0,77503.0,0.15462734]
[1731205656997,0.16408658,77515.0,77509.0,0.3608]
[1731205657197,0.3608,77521.0,77503.0,0.16755734]
[1731205657198,0.19088354,77514.0,77503.0,0.16755734]
[1731205657395,0.02699263,77513.0,77503.0,0.16755734]
[1731205657599,0.16408658,77514.0,77509.0,0.3608]
[1731205657805,0.3608,77521.0,77510.0,0.06471]
[1731205657994,0.02735533,77520.0,77510.0,0.23226734]
[1731205658298,0.3608,77521.0,77512.0,0.06471]
[1731205658299,0.16408658,77514.0,77512.0,0.06471]
[1731205658693,0.425263,77521.0,77512.0,0.06471]
[1731205658895,0.3608,77530.0,77514.0,0.06471]
[1731205659108,0.3608,77555.0,77530.0,0.06471]
[1731205659398,0.064428,77563.0,77554.0,0.16755734]
[1731205659601,0.064434,77555.0,77551.0,0.32199]
[1731205659795,0.064437,77553.0,77551.0,0.27023]
[1731205659997,0.064434,77556.0,77552.0,0.06471]
[1731205660302,0.3608,77564.0,77556.0,0.06471]
[1731205660498,0.3608,77564.0,77563.0,0.06471]
[1731205660691,0.3608,77564.0,77563.0,0.23226734]
[1731205660892,0.3608,77564.0,77563.0,0.06471]
[1731205661193,0.62171344,77564.0,77563.0,0.06471]
[1731205661400,0.58286344,77564.0,77563.0,0.03883]
[1731205661602,0.32195,77564.0,77563.0,0.42559]
[1731205661799,0.42872119,77564.0,77563.0,0.42559]
[1731205661998,0.42872119,77564.0,77563.0,0.03883]
[1731205662404,0.59280777,77564.0,77563.0,0.03883]
[1731205662995,0.61118117,77564.0,77563.0,0.03883]
[1731205663605,0.61118117,77564.0,77563.0,0.42559]
[1731205663606,0.44709459,77564.0,77563.0,0.42559]
[1731205663808,0.44709459,77564.0,77563.0,0.03883]
[1731205664000,0.42872119,77564.0,77563.0,0.03883]
[1731205664197,0.59280777,77564.0,77563.0,0.03883]
[1731205664501,0.064436,77554.0,77552.0,0.06471]
[1731205664907,0.27085777,77553.0,77552.0,0.06471]
[1731205665406,0.27085777,77553.0,77544.0,0.06471]
[1731205665407,0.064443,77545.0,77544.0,0.06471]
[1731205665906,0.33530077,77545.0,77544.0,0.06471]
[1731205668107,0.33530077,77545.0,77509.0,0.43552]
[1731205668108,0.064452,77534.0,77525.0,0.3608]
[1731205668410,0.63165777,77533.0,77525.0,0.3608]
[1731205668599,0.064459,77526.0,77525.0,0.3608]
[1731205668799,0.22854558,77526.0,77525.0,0.3608]
[1731205669001,0.064459,77525.0,77517.0,0.06471]
[1731205669305,0.064465,77518.0,77517.0,0.06471]
[1731205669612,0.33543376,77518.0,77517.0,0.06471]
[1731205672707,0.17134718,77518.0,77517.0,0.06471]
[1731205673899,0.10688218,77518.0,77517.0,0.06471]
[1731205674213,0.3608,77546.0,77520.0,0.06471]
[1731205674214,0.064444,77544.0,77520.0,0.06471]
[1731205674404,0.064444,77544.0,77541.0,0.06471]
[1731205674405,0.16408658,77542.0,77541.0,0.06471]
[1731205674604,0.3608,77561.0,77541.0,0.06471]
[1731205674909,0.3608,77561.0,77551.0,0.06471]
[1731205675109,0.064437,77553.0,77551.0,0.06471]
[1731205675307,0.16408658,77552.0,77551.0,0.06471]
[1731205675602,0.064446,77541.0,77540.0,0.3608]
[1731205675804,0.22853258,77541.0,77540.0,0.3608]
[1731205676313,0.22853258,77541.0,77530.0,0.42731]
[1731205676314,0.064454,77531.0,77530.0,0.42731]
[1731205676517,0.24750769,77531.0,77530.0,0.06471]
[1731205676809,0.24750769,77531.0,77528.0,0.06471]
[1731205676810,0.01896711,77531.0,77528.0,0.06471]
[1731205677013,0.16408658,77534.0,77530.0,0.42551]
[1731205677205,0.1827106,77533.0,77530.0,0.42551]
[1731205677409,0.01862402,77532.0,77530.0,0.42551]
[1731205678003,0.064442,77546.0,77530.0,0.42551]
[1731205678214,0.16408658,77537.0,77533.0,0.06471]
[1731205678412,0.3608,77560.0,77536.0,0.42551]
[1731205678612,0.064449,77538.0,77536.0,0.42551]
[1731205678803,0.18179132,77537.0,77536.0,0.42551]
[1731205679519,0.20744766,77537.0,77536.0,0.42551]
[1731205679702,0.18179132,77537.0,77536.0,0.35292493]
[1731205680604,0.20744233,77537.0,77536.0,0.35292493]
[1731205680806,0.064449,77538.0,77536.0,0.35292493]
[1731205680807,0.3608,77559.0,77536.0,0.73984493]
[1731205681106,0.3608,77559.0,77545.0,0.06471]
[1731205681107,0.06444,77549.0,77545.0,0.06471]
[1731205681321,0.064441,77547.0,77545.0,0.06471]
[1731205681509,0.22853458,77539.0,77538.0,0.32856052]
[1731205681812,0.12210299,77539.0,77538.0,0.32856052]
[1731205682118,0.28618957,77539.0,77538.0,0.27680052]
[1731205682309,0.28618957,77539.0,77538.0,0.31563052]
[1731205682509,0.32576942,77539.0,77538.0,0.31563052]
[1731205682811,0.32576942,77539.0,77538.0,0.26387052]
[1731205683002,0.22174157,77539.0,77538.0,0.23799052]
[1731205683201,0.22174157,77539.0,77538.0,0.21211052]
[1731205683409,0.22174157,77539.0,77538.0,0.06471]
[1731205683613,0.22174157,77539.0,77538.0,0.42551]
[1731205683815,0.22174157,77539.0,77538.0,0.39963]
[1731205684418,0.22174157,77539.0,77538.0,0.34787]
[1731205684610,0.22174157,77539.0,77538.0,0.32199]
[1731205684807,0.22174157,77539.0,77536.0,0.06471]
[1731205685012,0.22174157,77539.0,77531.0,0.3608]
[1731205685013,0.0569297,77538.0,77532.0,0.06471]
[1731205685207,0.16408658,77533.0,77532.0,0.03883]
[1731205685611,0.16408658,77532.0,77531.0,0.33492]
[1731205686003,0.16408658,77532.0,77531.0,0.39963]
[1731205686205,0.425246,77542.0,77531.0,0.39963]
[1731205686206,0.3608,77542.0,77531.0,0.39963]
[1731205686403,0.16408658,77532.0,77531.0,0.39963]
[1731205686812,0.1282,77548.0,77531.0,0.39963]
[1731205687014,0.16408658,77536.0,77531.0,0.39963]
[1731205687919,0.0653,77548.0,77533.0,0.06471]
[1731205688219,0.064428,77563.0,77547.0,0.23186662]
[1731205688406,0.02588411,77562.0,77547.0,0.23186662]
[1731205688607,0.1282,77565.0,77547.0,0.23186662]
[1731205688608,0.16408658,77549.0,77547.0,0.23186662]
[1731205688810,0.16408658,77548.0,77547.0,0.06471]
[1731205689118,0.18971302,77548.0,77544.0,0.06471]
[1731205689311,0.064439,77550.0,77544.0,0.06471]
[1731205689312,0.064443,77545.0,77544.0,0.06471]
[1731205689509,0.064443,77545.0,77532.0,0.06471]
[1731205689510,0.064447,77540.0,77532.0,0.06471]
[1731205689716,0.16408658,77533.0,77532.0,0.06471]
[1731205690116,0.16408658,77533.0,77526.0,0.06471]
[1731205690317,0.064455,77531.0,77526.0,0.06471]
[1731205690615,0.22854458,77527.0,77526.0,0.06471]
[1731205690917,0.24597911,77527.0,77526.0,0.06471]
[1731205691320,0.3608,77558.0,77526.0,0.60087]
[1731205691524,0.425241,77548.0,77538.0,0.06471]
[1731205691712,0.02495282,77547.0,77538.0,0.06471]
[1731205691908,0.52488658,77539.0,77538.0,0.06471]
[1731205692114,0.54979337,77539.0,77521.0,0.16715662]
[1731205692314,0.15190679,77538.0,77527.0,0.06471]
[1731205692521,0.22854458,77528.0,77527.0,0.06471]
[1731205693223,0.16408658,77528.0,77527.0,0.06471]
[1731205693421,0.16408658,77528.0,77526.0,0.06471]
[1731205693621,0.16408658,77528.0,77525.0,0.06471]
[1731205693622,0.22854558,77526.0,77525.0,0.06471]
[1731205693921,0.18899632,77526.0,77525.0,0.06471]
[1731205694507,0.22057759,77526.0,77522.0,0.06471]
[1731205694713,0.05649101,77525.0,77522.0,0.06471]
[1731205694915,0.16408658,77523.0,77522.0,0.06471]
[1731205695127,0.18899632,77523.0,77522.0,0.06471]
[1731205696013,0.18899642,77523.0,77519.0,0.06471]
[1731205696322,0.064454,77532.0,77518.0,0.52795662]
[1731205696323,0.02490984,77522.0,77521.0,0.129173]
[1731205696518,0.02490984,77522.0,77521.0,0.29632962]
[1731205696720,0.18899348,77522.0,77521.0,0.06471]
[1731205697426,0.18899348,77522.0,77519.0,0.06471]
[1731205697625,0.0249069,77521.0,77519.0,0.06471]
[1731205697815,0.064461,77524.0,77519.0,0.06471]
[1731205697816,0.22057463,77520.0,77519.0,0.06471]
[1731205698014,0.18899348,77520.0,77519.0,0.06471]
[1731205698425,0.22057327,77520.0,77519.0,0.06471]
[1731205698623,0.28503727,77520.0,77519.0,0.42551]
[1731205698920,0.28503727,77520.0,77519.0,0.06471]
[1731205699824,0.28503727,77520.0,77515.0,0.06471]
[1731205700016,0.28503727,77520.0,77519.0,0.06471]
[1731205700017,0.064464,77520.0,77519.0,0.06471]
[1731205700218,0.0564932,77520.0,77519.0,0.06471]
[1731205700528,0.16408658,77520.0,77519.0,0.06471]
[1731205702223,0.22855058,77520.0,77519.0,0.42551]
[1731205702631,0.58935058,77520.0,77519.0,0.06471]
[1731205703223,0.58935058,77520.0,77514.0,0.00193467]
[1731205703224,0.52488658,77520.0,77514.0,0.00193467]
[1731205703423,0.22855458,77515.0,77514.0,0.00193467]
[1731205704020,0.58935458,77515.0,77514.0,0.00193467]
[1731205704325,0.58935458,77515.0,77496.0,0.06471]
[1731205704326,0.16408658,77513.0,77496.0,0.06471]
[1731205704529,0.064476,77505.0,77504.0,0.01639628]
[1731205704715,0.083527,77505.0,77504.0,0.01639628]
[1731205704920,0.24761358,77505.0,77504.0,0.01639628]
[1731205706520,0.064479,77502.0,77496.0,0.01639628]
[1731205706723,0.064481,77499.0,77496.0,0.01639628]
[1731205706919,0.16408658,77497.0,77496.0,0.01639628]
[1731205707224,0.16408658,77493.0,77492.0,0.09896809]
[1731205707426,0.18313758,77493.0,77492.0,0.09896809]
[1731205707626,0.20805884,77493.0,77492.0,0.09896809]
[1731205707930,0.20805884,77493.0,77479.0,0.00152735]
[1731205707931,0.064496,77481.0,77479.0,0.00152735]
[1731205708123,0.04397226,77480.0,77479.0,0.00152735]
[1731205708423,0.04397226,77480.0,77479.0,0.16868397]
[1731205709020,0.04397226,77480.0,77479.0,0.16715662]
[1731205709225,0.04397571,77480.0,77479.0,0.16715662]
[1731205709425,0.019051,77480.0,77479.0,0.16715662]
[1731205709627,0.04397594,77480.0,77479.0,0.16715662]
[1731205710018,0.04397603,77480.0,77479.0,0.16715662]
[1731205710425,0.3608,77499.0,77479.0,0.52795662]
[1731205710631,0.07531,77498.0,77482.0,0.16715662]
[1731205710826,0.08940815,77497.0,77486.0,0.3608]
[1731205711020,0.02492515,77496.0,77494.0,0.3608]
[1731205711229,0.3608,77522.0,77495.0,0.16715662]
[1731205711230,0.064466,77518.0,77495.0,0.16715662]
[1731205711435,0.064466,77518.0,77508.0,0.3608]
[1731205711632,0.1405,77519.0,77508.0,0.3608]
[1731205711633,0.02491625,77516.0,77508.0,0.3608]
[1731205711930,0.02491625,77515.0,77508.0,0.3608]
[1731205712236,0.1405,77519.0,77508.0,0.3608]
[1731205712237,0.02491625,77514.0,77508.0,0.3608]
[1731205712431,0.3608,77522.0,77508.0,0.3608]
[1731205713029,0.425262,77522.0,77508.0,0.3608]
[1731205713542,0.0758,77524.0,77505.0,0.23163162]
[1731205713543,0.02491407,77521.0,77520.0,0.3608]
[1731205713830,0.0758,77524.0,77520.0,0.3608]
[1731205714035,0.0758,77524.0,77521.0,0.064462]
[1731205714418,0.0758,77524.0,77520.0,0.3608]
[1731205714623,0.0758,77524.0,77522.0,0.064461]
[1731205715133,0.0758,77524.0,77520.0,0.3608]
[1731205716529,0.064462,77522.0,77512.0,0.52795662]
[1731205716832,0.0758,77524.0,77512.0,0.52795662]
[1731205717125,0.02491259,77523.0,77521.0,0.3608]
[1731205717331,0.0758,77524.0,77523.0,0.16715662]
[1731205718125,0.0738,77524.0,77523.0,0.16715662]
[1731205718529,0.0718,77524.0,77523.0,0.16715662]
[1731205719629,0.0718,77524.0,77521.0,0.3608]
[1731205719831,0.064461,77523.0,77521.0,0.3608]
[1731205720030,0.064465,77519.0,77513.0,0.16715662]
[1731205720221,0.064467,77516.0,77513.0,0.16715662]
[1731205720428,0.01856516,77515.0,77513.0,0.16715662]
[1731205720629,0.01856516,77514.0,77512.0,0.3608]
[1731205720828,0.01856516,77513.0,77512.0,0.52795662]
[1731205723044,0.01856516,77513.0,77512.0,0.59835662]
[1731205724135,0.064462,77523.0,77512.0,0.59835662]
[1731205724341,0.01754353,77522.0,77512.0,0.59835662]
[1731205724638,0.01754353,77521.0,77512.0,0.59835662]
[1731205724839,0.01754353,77520.0,77512.0,0.59835662]
[1731205725142,0.01754353,77519.0,77512.0,0.59835662]
[1731205725333,0.064462,77522.0,77518.0,0.11539662]
[1731205725536,0.01765022,77521.0,77519.0,0.06471]
[1731205725728,0.0718,77524.0,77520.0,0.59266662]
[1731205725929,0.03295,77524.0,77520.0,0.54090662]
[1731205726134,0.03295,77524.0,77520.0,0.48914662]
[1731205726341,0.03295,77524.0,77520.0,0.06471]
[1731205726643,0.064463,77521.0,77498.0,0.14321186]
[1731205726942,0.06447,77513.0,77511.0,0.16715662]
[1731205727130,0.01706881,77512.0,77511.0,0.3608]
[1731205727332,0.01706881,77519.0,77511.0,0.33492]
[1731205727635,0.01707136,77518.0,77516.0,0.14127662]
[1731205727839,0.425262,77523.0,77516.0,0.11539662]
[1731205728040,0.425262,77523.0,77516.0,0.08951662]
[1731205728249,0.3608,77523.0,77516.0,0.06363662]
[1731205728444,0.064462,77522.0,77517.0,0.06471]
[1731205728627,0.064462,77522.0,77517.0,0.03883]
[1731205728828,0.3608,77523.0,77517.0,0.03883]
[1731205729939,0.064465,77519.0,77517.0,0.03883]
[1731205730734,0.02491124,77518.0,77517.0,0.03883]
[1731205730929,0.064465,77519.0,77517.0,0.03883]
[1731205731143,0.05649348,77518.0,77517.0,0.03883]
[1731205731338,0.80429348,77518.0,77494.0,0.00910919]